bitfinex-derivatives/quotes_BTCF0:USTF0_20250911
["timestamp","ask_amount","ask_price","bid_price","bid_amount"]
[1757598172550,0.97384088,114050.0,114040.0,0.65455]
[1757598172743,0.9831636,114050.0,114040.0,0.65455]
[1757598173043,1.14512282,114050.0,114040.0,0.40455]
[1757598173250,1.14512282,114050.0,114040.0,0.40355]
[1757598173446,0.9831636,114050.0,114040.0,0.40355]
[1757598173647,0.9829636,114050.0,114040.0,0.40355]
[1757598173846,0.1058436,114050.0,114040.0,0.40355]
[1757598174047,0.9827236,114050.0,114040.0,0.40355]
[1757598174248,0.9827236,114050.0,114040.0,0.40155]
[1757598174647,0.1058436,114050.0,114040.0,0.40155]
[1757598174850,0.94808088,114050.0,114040.0,0.8150822]
[1757598176546,0.94808088,114050.0,114040.0,0.65155]
[1757598176743,0.97272088,114050.0,114040.0,0.65155]
[1757598177155,0.97272088,114050.0,114040.0,0.40155]
[1757598177156,1.13625308,114050.0,114040.0,0.40155]
[1757598177456,0.97272088,114050.0,114040.0,0.40155]
[1757598178043,0.98225044,114050.0,114040.0,0.40155]
[1757598178247,0.94808088,114050.0,114040.0,0.46429346]
[1757598178446,0.94808088,114050.0,114040.0,0.71429346]
[1757598178855,0.94580088,114050.0,114040.0,0.87782566]
[1757598179058,0.94580088,114050.0,114040.0,0.71429346]
[1757598179251,0.94580088,114050.0,114040.0,0.87782566]
[1757598179656,0.97044088,114050.0,114040.0,0.87782566]
[1757598180356,0.94580088,114050.0,114040.0,0.87782566]
[1757598180553,0.94580088,114050.0,114040.0,0.71429346]
[1757598180554,0.07188088,114050.0,114040.0,0.71429346]
[1757598180753,0.94464088,114050.0,114040.0,0.87782566]
[1757598182053,1.9313322,114070.0,114060.0,0.01474]
[1757598182054,1.7678,114070.0,114060.0,0.01474]
[1757598182253,2.64004,114070.0,114060.0,0.5621822]
[1757598182461,1.7678,114070.0,114060.0,0.5621822]
[1757598182656,0.02464,114100.0,114090.0,0.01474]
[1757598182847,0.89664,114100.0,114090.0,0.5621822]
[1757598183050,0.89664,114100.0,114090.0,0.39865]
[1757598183362,0.96784737,114100.0,114090.0,0.39865]
[1757598184058,1.13137957,114100.0,114090.0,0.39865]
[1757598184259,0.96784737,114100.0,114090.0,0.39865]
[1757598184652,1.13137957,114100.0,114090.0,0.39865]
[1757598184944,1.13637957,114100.0,114090.0,0.39865]
[1757598185155,1.9318098,114100.0,114090.0,0.001]
[1757598185851,1.7682776,114100.0,114090.0,0.001]
[1757598186050,1.7662776,114100.0,114070.0,0.37554]
[1757598186251,0.4827454,114100.0,114090.0,0.001]
[1757598186451,0.6462776,114100.0,114090.0,0.001]
[1757598186663,1.5170376,114100.0,114090.0,0.001]
[1757598187254,1.9305698,114100.0,114090.0,0.001]
[1757598187556,0.03538,114070.0,114050.0,0.43836364]
[1757598187863,1.0585322,114060.0,114050.0,0.46147364]
[1757598188358,0.02464,114060.0,114050.0,0.46147364]
[1757598188554,0.87024,114060.0,114050.0,0.46147364]
[1757598188754,0.87024,114060.0,114050.0,0.39865]
[1757598188956,0.89488,114060.0,114050.0,0.39865]
[1757598189462,0.89488,114060.0,114050.0,0.46247284]
[1757598189652,1.4814844,114060.0,114050.0,0.06382284]
[1757598189864,1.4813244,114060.0,114050.0,0.001]
[1757598190065,1.8421244,114060.0,114050.0,0.001]
[1757598191058,1.8431244,114060.0,114050.0,0.001]
[1757598191269,0.9750444,114060.0,114050.0,0.001]
[1757598191463,1.8446444,114060.0,114050.0,0.001]
[1757598191663,1.6811122,114060.0,114050.0,0.001]
[1757598191963,0.87196347,114060.0,114050.0,0.01574]
[1757598192163,1.74096347,114060.0,114050.0,0.01574]
[1757598192863,1.37996347,114060.0,114050.0,0.01574]
[1757598193172,0.09763127,114060.0,114050.0,0.39965]
[1757598193568,0.96583127,114060.0,114050.0,0.39965]
[1757598193767,1.12936347,114060.0,114050.0,0.39965]
[1757598193969,0.96583127,114060.0,114050.0,0.39965]
[1757598194572,0.96551127,114060.0,114050.0,0.39965]
[1757598195764,0.09763127,114060.0,114050.0,0.39965]
[1757598195965,0.96551127,114060.0,114050.0,0.39965]
[1757598196469,0.96551127,114060.0,114050.0,0.8131822]
[1757598196470,0.07299127,114060.0,114050.0,0.8131822]
[1757598196771,0.93983127,114060.0,114050.0,0.87600504]
[1757598197175,0.93983127,114060.0,114050.0,0.8131822]
[1757598197371,0.93983127,114060.0,114050.0,0.72793642]
[1757598197372,0.96447127,114060.0,114050.0,0.72793642]
[1757598197673,0.96451127,114060.0,114050.0,0.64965]
[1757598198175,0.09763127,114060.0,114050.0,0.8131822]
[1757598198373,0.96443127,114060.0,114050.0,0.89146862]
[1757598198569,0.07299127,114060.0,114050.0,0.89146862]
[1757598198969,0.86956,114060.0,114050.0,0.89146862]
[1757598199169,0.86956,114060.0,114050.0,0.92321703]
[1757598199675,0.003,114060.0,114050.0,1.17440893]
[1757598199863,0.003,114060.0,114050.0,0.75968483]
[1757598200070,0.8658,114070.0,114060.0,0.03785]
[1757598200265,1.76808,114080.0,114070.0,0.03785]
[1757598200571,2.8222122,114080.0,114070.0,0.47716125]
[1757598200770,2.65868,114080.0,114070.0,0.45405125]
[1757598200974,2.8222122,114080.0,114070.0,0.43834733]
[1757598201169,2.8222122,114080.0,114070.0,0.07754733]
[1757598201170,3.0722122,114080.0,114070.0,0.07754733]
[1757598201377,3.0722122,114080.0,114070.0,0.06280733]
[1757598201570,3.0772122,114080.0,114070.0,0.06280733]
[1757598201973,3.0802122,114080.0,114070.0,0.001]
[1757598202178,2.91668,114080.0,114070.0,0.001]
[1757598202374,3.4410122,114080.0,114070.0,0.001]
[1757598202974,2.8295722,114080.0,114070.0,0.001]
[1757598203175,2.8294122,114080.0,114070.0,0.01431]
[1757598203576,2.66588,114080.0,114070.0,0.01431]
[1757598203772,2.8293322,114080.0,114070.0,0.03877]
[1757598204172,1.9642522,114080.0,114070.0,0.39957]
[1757598204375,2.8293322,114080.0,114070.0,0.03877]
[1757598204675,3.0793322,114080.0,114070.0,0.001]
[1757598204865,3.0788522,114080.0,114070.0,0.001]
[1757598205382,3.4396522,114080.0,114070.0,0.001]
[1757598207579,3.02544,114080.0,114070.0,0.001]
[1757598207782,2.8281722,114080.0,114070.0,0.001]
[1757598208476,2.66468,114080.0,114070.0,0.03877]
[1757598208681,2.8282122,114080.0,114070.0,0.03877]
[1757598209385,2.8280122,114080.0,114070.0,0.03877]
[1757598209681,1.80072,114080.0,114070.0,0.71237733]
[1757598209878,1.80072,114080.0,114070.0,0.87590953]
[1757598210179,1.77608,114080.0,114070.0,0.8131022]
[1757598210685,1.77608,114080.0,114070.0,0.89161345]
[1757598210981,2.639,114080.0,114070.0,0.89161345]
[1757598211179,2.66275,114080.0,114070.0,0.5631022]
[1757598211377,2.66275,114080.0,114070.0,0.47805802]
[1757598211578,2.66275,114080.0,114070.0,0.64159022]
[1757598211985,2.66275,114080.0,114070.0,0.47805802]
[1757598212185,2.66275,114080.0,114070.0,0.64159022]
[1757598212482,2.66275,114080.0,114070.0,0.47805802]
[1757598212681,2.639,114080.0,114070.0,0.47805802]
[1757598212877,2.639,114080.0,114070.0,0.89159022]
[1757598213078,2.639,114080.0,114070.0,0.8131022]
[1757598213293,2.639,114080.0,114070.0,0.64957]
[1757598213472,0.008,114080.0,114070.0,0.89159054]
[1757598213677,0.87,114080.0,114070.0,0.8131022]
[1757598213875,0.73738624,114080.0,114070.0,0.5631022]
[1757598215292,0.73738624,114080.0,114070.0,0.67294218]
[1757598216683,0.76113624,114080.0,114070.0,0.58783594]
[1757598216888,0.92466844,114080.0,114070.0,0.59661458]
[1757598217190,0.76113624,114080.0,114070.0,0.4867746]
[1757598217584,0.92466844,114080.0,114070.0,0.4867746]
[1757598217986,0.76113624,114080.0,114070.0,0.4867746]
[1757598219188,0.76113624,114080.0,114070.0,0.6503068]
[1757598219389,0.76113624,114080.0,114070.0,0.40833]
[1757598219889,0.92466844,114080.0,114070.0,0.40833]
[1757598220084,0.1872822,114080.0,114070.0,0.38387]
[1757598220291,1.0466822,114080.0,114070.0,0.40833]
[1757598220485,0.88315,114080.0,114070.0,0.4867746]
[1757598222294,0.88315,114080.0,114070.0,0.6503068]
[1757598222494,0.88315,114080.0,114070.0,0.4867746]
[1757598222995,1.0466822,114080.0,114070.0,0.4623146]
[1757598223492,1.0466822,114080.0,114070.0,0.38387]
[1757598223897,0.88215,114080.0,114070.0,0.40833]
[1757598224088,0.02375,114080.0,114070.0,0.5718622]
[1757598224289,1.80932563,114090.0,114080.0,0.03777]
[1757598224595,2.66720563,114090.0,114080.0,0.4613812]
[1757598225187,1.80932563,114090.0,114080.0,0.4613812]
[1757598225386,2.66884563,114090.0,114080.0,0.4613812]
[1757598225587,1.81132563,114090.0,114080.0,0.4613812]
[1757598225791,2.66884563,114090.0,114080.0,0.4613812]
[1757598225994,2.66884563,114090.0,114080.0,0.6249134]
[1757598226193,2.67084563,114090.0,114080.0,0.6249134]
[1757598226392,1.81132563,114090.0,114080.0,0.6405468]
[1757598226594,2.66976563,114090.0,114080.0,0.39857]
[1757598226986,2.66976563,114090.0,114080.0,0.46139846]
[1757598227498,2.84568783,114090.0,114080.0,0.42362846]
[1757598227701,2.84368783,114090.0,114080.0,0.42362846]
[1757598227992,3.00722003,114090.0,114080.0,0.42362846]
[1757598228196,2.84268783,114090.0,114080.0,0.42362846]
[1757598228699,2.67915563,114090.0,114080.0,0.42362846]
[1757598228898,2.83029783,114090.0,114080.0,0.43693846]
[1757598229087,2.82877783,114090.0,114080.0,0.46139846]
[1757598229594,2.82877783,114090.0,114080.0,0.42362846]
[1757598229792,2.84080783,114090.0,114080.0,0.42362846]
[1757598231503,2.66428563,114090.0,114080.0,0.39818]
[1757598231800,2.82781783,114090.0,114080.0,0.39818]
[1757598231987,2.66428563,114090.0,114080.0,0.39818]
[1757598232192,2.82781783,114090.0,114080.0,0.40694]
[1757598232600,2.66428563,114090.0,114080.0,0.40694]
[1757598232800,2.66428563,114090.0,114080.0,0.46976846]
[1757598233301,2.66528563,114090.0,114080.0,0.46976846]
[1757598233692,2.82881783,114090.0,114080.0,0.46976846]
[1757598233994,2.82981783,114090.0,114080.0,0.46976846]
[1757598234598,2.82763065,114090.0,114080.0,0.46976846]
[1757598234798,2.82663065,114090.0,114080.0,0.46976846]
[1757598235294,2.82763065,114090.0,114080.0,0.46976846]
[1757598235600,2.82863065,114090.0,114080.0,0.46976846]
[1757598235797,2.82863065,114090.0,114080.0,0.44660846]
[1757598236005,2.84058065,114090.0,114080.0,0.07158846]
[1757598236189,1.81132563,114090.0,114080.0,0.46976846]
[1757598236394,1.81132563,114090.0,114080.0,0.10896846]
[1757598236395,2.82695065,114090.0,114080.0,0.10896846]
[1757598236702,2.66460563,114090.0,114080.0,0.46976846]
[1757598236902,2.82695065,114090.0,114080.0,0.46976846]
[1757598237099,2.66460563,114090.0,114080.0,0.46976846]
[1757598237699,2.67655563,114090.0,114080.0,0.43238846]
[1757598237901,2.67555563,114090.0,114080.0,0.43238846]
[1757598238097,2.83890065,114090.0,114080.0,0.43238846]
[1757598238300,2.83890065,114090.0,114080.0,0.36956]
[1757598238601,3.08890065,114090.0,114080.0,0.36956]
[1757598239405,3.08890065,114090.0,114080.0,0.4480046]
[1757598239804,3.08890065,114090.0,114080.0,0.36956]
[1757598240006,3.08890065,114090.0,114080.0,0.4480046]
[1757598240504,3.08890065,114090.0,114080.0,0.36956]
[1757598240703,3.08890065,114090.0,114080.0,0.4480046]
[1757598241004,3.08890065,114090.0,114080.0,0.00876]
[1757598241005,3.44970065,114090.0,114080.0,0.00876]
[1757598241198,3.44970065,114090.0,114080.0,0.07175245]
[1757598241798,3.08678065,114090.0,114080.0,0.07175245]
[1757598241996,3.08678065,114090.0,114080.0,0.00876]
[1757598242206,3.08678065,114090.0,114080.0,0.07175228]
[1757598242398,3.44758065,114090.0,114080.0,0.07175228]
[1757598243300,3.08678065,114090.0,114080.0,0.07175228]
[1757598244107,3.07459065,114090.0,114080.0,0.10913228]
[1757598244303,3.08654065,114090.0,114080.0,0.07176248]
[1757598244510,3.44734065,114090.0,114080.0,0.07176248]
[1757598244807,3.44738065,114090.0,114080.0,0.07176248]
[1757598246502,3.44738065,114090.0,114080.0,0.00424626]
[1757598246704,0.03307,114070.0,114060.0,0.06614592]
[1757598246910,0.03307,114070.0,114050.0,0.03000765]
[1757598246911,1.76713502,114070.0,114050.0,0.03000765]
[1757598247104,0.54667502,114060.0,114050.0,0.03000765]
[1757598247307,0.02353,114040.0,114030.0,0.5322436]
[1757598247508,1.0217404,114040.0,114030.0,0.37502]
[1757598248112,0.08849137,114040.0,114030.0,0.39818]
[1757598248310,0.88179639,114040.0,114030.0,0.39818]
[1757598248507,0.25083639,114040.0,114030.0,0.39818]
[1757598248706,0.25083639,114040.0,114030.0,0.40118]
[1757598248907,1.03079639,114040.0,114030.0,0.40418]
[1757598249111,1.10195639,114040.0,114030.0,0.40418]
[1757598249310,0.25183639,114040.0,114030.0,0.40418]
[1757598249504,1.03175639,114040.0,114030.0,0.40418]
[1757598249709,1.03175639,114040.0,114030.0,0.38102]
[1757598249907,1.03175639,114040.0,114030.0,0.40418]
[1757598250108,1.03175639,114040.0,114030.0,0.38102]
[1757598250711,1.03179639,114040.0,114030.0,0.40418]
[1757598251515,1.03179639,114040.0,114030.0,0.38102]
[1757598252011,2.79999639,114040.0,114030.0,0.006]
[1757598252209,3.41079639,114040.0,114030.0,0.006]
[1757598252412,3.41079639,114040.0,114000.0,0.37502]
[1757598252712,0.01158,114010.0,114000.0,0.39818]
[1757598252914,0.86178,114010.0,114000.0,0.39818]
[1757598253614,0.01158,114010.0,114000.0,0.39818]
[1757598253914,0.86178,114010.0,114000.0,0.39818]
[1757598254402,0.86178,114010.0,114000.0,0.40018]
[1757598254809,0.86178,114010.0,114000.0,0.40118]
[1757598255516,0.86278,114010.0,114000.0,0.40318]
[1757598255712,0.86278,114010.0,114000.0,0.40718]
[1757598256413,1.02512502,114010.0,114000.0,0.40718]
[1757598256609,0.01258,114010.0,114000.0,0.40718]
[1757598256910,0.85128,114010.0,114000.0,0.81952502]
[1757598257503,0.85132,114010.0,114000.0,0.81952502]
[1757598258113,0.8629,114010.0,114000.0,0.81952502]
[1757598258417,0.85132,114010.0,114000.0,0.81952502]
[1757598259918,0.8629,114010.0,114000.0,0.65718]
[1757598260415,0.85132,114010.0,114000.0,0.65718]
[1757598261516,0.8629,114010.0,114000.0,0.65718]
[1757598262311,1.02524502,114010.0,114000.0,0.40718]
[1757598262611,1.28235502,114010.0,114000.0,0.009]
[1757598263009,1.27524502,114010.0,114000.0,0.0451]
[1757598263408,1.27524502,114010.0,114000.0,0.4059]
[1757598263602,0.01262,114010.0,114000.0,0.4059]
[1757598263802,1.02532502,114010.0,114000.0,0.4059]
[1757598264011,0.86298,114010.0,114000.0,0.4059]
[1757598264313,1.27532502,114010.0,114000.0,0.38228]
[1757598264714,1.27532502,114010.0,114000.0,0.3638]
[1757598264908,1.27532502,114010.0,114000.0,0.3668]
[1757598266411,1.29303004,114010.0,114000.0,0.3668]
[1757598266812,1.29303004,114010.0,114000.0,0.006]
[1757598267115,1.29303004,114010.0,114000.0,0.4029]
[1757598267116,1.04307004,114010.0,114000.0,0.4029]
[1757598267820,1.04307004,114010.0,114000.0,0.01948]
[1757598268005,1.04307004,114010.0,114000.0,0.006]
[1757598268609,1.29307004,114010.0,114000.0,0.006]
[1757598268920,1.65387004,114010.0,114000.0,0.006]
[1757598269116,0.80347004,114010.0,114000.0,0.006]
[1757598269420,0.80347004,114010.0,114000.0,0.01948]
[1757598269421,1.29307004,114010.0,114000.0,0.01948]
[1757598269719,1.49152502,114010.0,114000.0,0.01948]
[1757598269907,1.65387004,114010.0,114000.0,0.006]
[1757598271017,1.49152502,114010.0,114000.0,0.006]
[1757598271215,1.65387004,114010.0,114000.0,0.006]
[1757598271814,1.65387004,114010.0,114000.0,0.003]
[1757598272018,1.65287004,114010.0,113980.0,0.37502]
[1757598272317,0.17371502,113990.0,113980.0,0.37502]
[1757598272517,2.79323502,113990.0,113980.0,0.37502]
[1757598273824,2.86510237,113990.0,113980.0,0.39764]
[1757598274120,2.86510237,113990.0,113980.0,0.39864]
[1757598274121,2.01466237,113990.0,113980.0,0.39864]
[1757598274313,2.70275735,113990.0,113980.0,0.39864]
[1757598274513,2.86510237,113990.0,113980.0,0.39864]
[1757598274710,2.86610237,113990.0,113980.0,0.39864]
[1757598275017,2.86610237,113990.0,113980.0,0.40164]
[1757598276118,2.86610237,113990.0,113980.0,0.37902]
[1757598277214,2.86610237,113990.0,113980.0,0.3648]
[1757598278017,2.86610237,113990.0,113980.0,0.37828]
[1757598278220,2.8838253,113990.0,113980.0,0.3648]
[1757598278422,2.8838253,113990.0,113980.0,0.01277]
[1757598278725,2.72148028,113990.0,113980.0,0.01277]
[1757598278926,2.72148028,113990.0,113980.0,0.04887]
[1757598279112,2.8838253,113990.0,113980.0,0.04887]
[1757598279318,2.8838253,113990.0,113980.0,0.02625]
[1757598280025,2.8838253,113990.0,113980.0,0.04887]
[1757598280222,2.8838253,113990.0,113980.0,0.37357]
[1757598280223,2.72148028,113990.0,113980.0,0.37357]
[1757598280429,1.87104028,113990.0,113980.0,0.04887]
[1757598280617,2.8930253,113990.0,113980.0,0.04887]
[1757598280929,2.8930253,113990.0,113980.0,0.40967]
[1757598280930,1.87104028,113990.0,113980.0,0.40967]
[1757598281228,2.8947053,113990.0,113980.0,0.40967]
[1757598281926,2.8947053,113990.0,113980.0,0.04887]
[1757598282321,2.8947053,113990.0,113980.0,0.02625]
[1757598282519,2.8947453,113990.0,113980.0,0.01277]
[1757598284529,2.8947453,113990.0,113980.0,0.02625]
[1757598284726,2.73240028,113990.0,113980.0,0.02625]
[1757598284925,2.8947453,113990.0,113980.0,0.02625]
[1757598285529,2.8947453,113990.0,113980.0,0.04887]
[1757598286518,1.87108028,113990.0,113980.0,0.40967]
[1757598286722,2.73008028,113990.0,113980.0,0.40967]
[1757598286924,1.87108028,113990.0,113980.0,0.65967]
[1757598287232,2.73004028,113990.0,113980.0,0.65967]
[1757598288130,2.71863028,113990.0,113980.0,0.82201502]
[1757598288323,2.71867028,113990.0,113980.0,0.82201502]
[1757598288525,2.73004028,113990.0,113980.0,0.65967]
[1757598288825,2.8923853,113990.0,113980.0,0.38705]
[1757598289224,2.8923853,113990.0,113980.0,0.40967]
[1757598289527,2.8923853,113990.0,113980.0,0.02625]
[1757598289726,2.8923853,113990.0,113980.0,0.01277]
[1757598289727,2.8994953,113990.0,113980.0,0.01277]
[1757598291425,2.92163289,113990.0,113980.0,0.01277]
[1757598292033,2.92163291,113990.0,113980.0,0.01277]
[1757598292224,3.1494953,113990.0,113980.0,0.01277]
[1757598292430,3.17163945,113990.0,113980.0,0.01277]
[1757598293027,3.53243945,113990.0,113980.0,0.01277]
[1757598293529,3.53243945,113990.0,113980.0,0.01377]
[1757598294334,3.53243945,113990.0,113980.0,0.01077]
[1757598294531,3.53243945,113990.0,113980.0,0.002]
[1757598295342,2.91580945,113990.0,113980.0,0.3628]
[1757598295542,1.89322443,113990.0,113980.0,0.3992]
[1757598295735,2.75310443,113990.0,113980.0,0.40797]
[1757598296038,2.73096028,113990.0,113980.0,0.40797]
[1757598296234,1.89322809,113990.0,113980.0,0.40797]
[1757598296428,2.9167937,113990.0,113980.0,0.40797]
[1757598296641,2.9167937,113990.0,113980.0,0.37157]
[1757598297340,2.75306809,113990.0,113980.0,0.38572]
[1757598297531,2.9167937,113990.0,113980.0,0.38572]
[1757598298440,2.9167937,113990.0,113980.0,0.40797]
[1757598298944,1.87108028,113990.0,113980.0,0.40797]
[1757598299135,2.73036028,113990.0,113980.0,0.65797]
[1757598299334,2.71891028,113990.0,113980.0,0.82169561]
[1757598299536,2.71891028,113990.0,113980.0,0.65797]
[1757598299938,2.71891028,113990.0,113980.0,0.82169561]
[1757598300138,2.71891028,113990.0,113980.0,0.40797]
[1757598300139,2.89208589,113990.0,113980.0,0.40797]
[1757598300442,2.89208589,113990.0,113980.0,0.38572]
[1757598300642,2.89799589,113990.0,113980.0,0.37157]
[1757598300942,2.89208589,113990.0,113980.0,0.40797]
[1757598301347,2.89208589,113990.0,113980.0,0.38572]
[1757598301935,2.89208589,113990.0,113980.0,0.40797]
[1757598302146,2.72836028,113990.0,113980.0,0.40797]
[1757598302644,2.72836028,113990.0,113980.0,0.65797]
[1757598302645,2.71871028,113990.0,113980.0,0.65797]
[1757598302838,2.72816028,113990.0,113980.0,0.65797]
[1757598303240,2.89188589,113990.0,113980.0,0.65797]
[1757598304244,2.89188589,113990.0,113980.0,0.38572]
[1757598304451,2.72816028,113990.0,113980.0,0.38572]
[1757598304747,3.14779589,113990.0,113980.0,0.01077]
[1757598305444,3.50859589,113990.0,113980.0,0.01077]
[1757598305645,3.6723215,113990.0,113980.0,0.01077]
[1757598305944,3.69425198,113990.0,113950.0,0.45274486]
[1757598306251,0.52452561,113970.0,113950.0,0.01348]
[1757598306439,0.3608,113970.0,113950.0,0.01348]
[1757598306754,1.85971028,113990.0,113980.0,0.0364]
[1757598307041,0.94927028,113990.0,113980.0,0.62399387]
[1757598307246,0.94927028,113990.0,113980.0,0.3972]
[1757598307643,1.11299589,113990.0,113980.0,0.3972]
[1757598308039,1.11299589,113990.0,113980.0,0.37495]
[1757598308544,1.11299589,113990.0,113980.0,0.43801933]
[1757598308949,1.11399589,113990.0,113980.0,0.43801933]
[1757598309150,0.09067028,113990.0,113980.0,0.3972]
[1757598309341,1.11571589,113990.0,113980.0,0.3972]
[1757598309741,0.95199028,113990.0,113980.0,0.47566486]
[1757598309944,1.11571589,113990.0,113980.0,0.47566486]
[1757598310149,0.95199028,113990.0,113980.0,0.3972]
[1757598310348,1.11571589,113990.0,113980.0,0.3972]
[1757598310649,1.11471589,113990.0,113980.0,0.3972]
[1757598311057,1.36471589,113990.0,113980.0,0.01415]
[1757598311251,1.72551589,113990.0,113980.0,0.0630709]
[1757598311550,1.72651589,113990.0,113980.0,0.0630709]
[1757598312246,0.34167028,113990.0,113980.0,0.0630709]
[1757598312451,1.36551589,113990.0,113980.0,0.0772209]
[1757598312844,1.72631589,113990.0,113980.0,0.0630709]
[1757598313558,0.86619589,113990.0,113980.0,0.0630709]
[1757598313747,1.72651589,113990.0,113980.0,0.0630709]
[1757598314050,1.72651589,113990.0,113970.0,0.4380209]
[1757598314352,0.16372561,113980.0,113970.0,0.0772209]
[1757598314556,1.31279028,113990.0,113970.0,0.0772209]
[1757598314854,0.16372561,113980.0,113970.0,0.0772209]
[1757598315349,0.16372561,113980.0,113970.0,0.4380209]
[1757598315542,1.02312561,113980.0,113970.0,0.4602709]
[1757598315747,1.79765122,113980.0,113940.0,0.45379461]
[1757598315953,1.79765122,113980.0,113930.0,0.37495]
[1757598315954,0.68825122,113950.0,113930.0,0.37495]
[1757598316151,1.02384561,113940.0,113930.0,0.3972]
[1757598316654,0.16372561,113940.0,113930.0,0.3972]
[1757598316855,1.02380561,113940.0,113930.0,0.3972]
[1757598317045,0.16372561,113940.0,113930.0,0.3972]
[1757598317247,1.77052,113950.0,113940.0,0.0364]
[1757598317442,2.63048,113950.0,113940.0,0.3972]
[1757598317649,1.84146308,113950.0,113940.0,0.6472]
[1757598317854,1.84146308,113950.0,113940.0,0.81092561]
[1757598318043,2.70078308,113950.0,113940.0,0.81092561]
[1757598318249,1.84046308,113950.0,113940.0,0.6472]
[1757598318448,2.70082308,113950.0,113940.0,0.6472]
[1757598318750,2.70070308,113950.0,113940.0,0.81092561]
[1757598319057,2.62972,113950.0,113940.0,0.81092561]
[1757598319251,0.01803441,113960.0,113950.0,0.0364]
[1757598319450,0.87823441,113960.0,113950.0,0.56092561]
[1757598319649,0.01803441,113960.0,113950.0,0.56092561]
[1757598319857,0.87807441,113960.0,113950.0,0.56092561]
[1757598320056,0.87807441,113960.0,113950.0,0.3972]
[1757598320248,0.87827441,113960.0,113950.0,0.6472]
[1757598320448,0.01803441,113960.0,113950.0,0.6472]
[1757598320649,0.87927441,113960.0,113950.0,0.6472]
[1757598320850,0.18276002,113960.0,113950.0,0.3972]
[1757598321049,1.04300002,113960.0,113950.0,0.3972]
[1757598321255,1.04300002,113960.0,113950.0,0.3982]
[1757598321754,1.04300002,113960.0,113950.0,0.37595]
[1757598321955,1.45672563,113960.0,113950.0,0.001]
[1757598322159,1.29300002,113960.0,113950.0,0.001]
[1757598322348,1.65380002,113960.0,113950.0,0.001]
[1757598322549,0.79356002,113960.0,113950.0,0.001]
[1757598322751,0.37983441,113960.0,113950.0,0.03723]
[1757598322957,0.88215441,113960.0,113950.0,0.75883]
[1757598324263,0.01903441,113960.0,113950.0,0.75883]
[1757598324460,0.01903441,113960.0,113950.0,1.17255561]
[1757598324763,0.01903441,113960.0,113950.0,1.2512634]
[1757598325059,0.88207441,113960.0,113950.0,1.2512634]
[1757598325456,0.88207441,113960.0,113950.0,1.08753779]
[1757598325859,0.88207441,113960.0,113950.0,1.2512634]
[1757598326155,0.88207441,113960.0,113950.0,1.08753779]
[1757598326360,0.88207441,113960.0,113950.0,1.2512634]
[1757598327664,0.01903441,113960.0,113950.0,1.2512634]
[1757598327856,1.85935028,113990.0,113950.0,1.28245753]
[1757598328054,1.89106023,113990.0,113980.0,0.39703]
[1757598328256,2.75302023,113990.0,113980.0,0.39703]
[1757598328458,2.91674584,113990.0,113980.0,0.39703]
[1757598328762,2.90759589,113990.0,113980.0,0.39703]
[1757598329464,2.90959589,113990.0,113980.0,0.39703]
[1757598329663,2.91891574,113990.0,113980.0,0.39703]
[1757598329864,3.16891574,113990.0,113970.0,0.37497]
[1757598330060,0.18628561,113980.0,113970.0,0.37497]
[1757598330962,0.43628561,113980.0,113970.0,0.3608]
[1757598331261,0.18628561,113980.0,113970.0,0.3608]
[1757598331560,0.43628561,113980.0,113970.0,0.37497]
[1757598331767,0.43828561,113980.0,113970.0,0.37497]
[1757598332358,0.60946122,113980.0,113970.0,0.3608]
[1757598332554,0.44573561,113980.0,113970.0,0.3608]
[1757598332761,0.44673561,113980.0,113970.0,0.3608]
[1757598332957,0.61046122,113980.0,113970.0,0.3608]
[1757598334969,0.44673561,113980.0,113970.0,0.3608]
[1757598335166,1.04916561,113980.0,113970.0,0.3608]
[1757598335367,1.04920561,113980.0,113970.0,0.37497]
[1757598335569,1.04920561,113980.0,113970.0,0.01417]
[1757598335771,1.04920561,113980.0,113960.0,0.37497]
[1757598335962,0.18628561,113970.0,113960.0,0.39703]
[1757598338071,0.18628561,113970.0,113960.0,0.37497]
[1757598338571,0.18628561,113970.0,113960.0,0.39703]
[1757598339367,0.18728561,113970.0,113960.0,0.39703]
[1757598340175,0.18728561,113970.0,113960.0,0.4058]
[1757598340375,0.35101122,113970.0,113960.0,0.38374]
[1757598340674,0.35101122,113970.0,113960.0,0.00877]
[1757598341071,0.96181122,113970.0,113960.0,0.00877]
[1757598341666,0.63436,113970.0,113960.0,0.00877]
[1757598341866,0.96181122,113970.0,113960.0,0.00877]
[1757598342676,0.96181122,113970.0,113920.0,0.64859753]
[1757598342677,0.03101,113940.0,113920.0,0.15688978]
[1757598342874,3.17464561,113930.0,113920.0,0.07869786]
[1757598343174,3.17464561,113930.0,113910.0,0.45366786]
[1757598343370,0.18628561,113920.0,113910.0,0.47572786]
[1757598343580,0.18628561,113920.0,113910.0,0.39703]
[1757598343772,1.04416561,113920.0,113910.0,0.39703]
[1757598344578,1.05332319,113920.0,113910.0,0.39703]
[1757598345475,1.05332319,113920.0,113910.0,0.40303]
[1757598345671,0.19644319,113920.0,113910.0,0.40303]
[1757598345875,1.05424319,113920.0,113910.0,0.40303]
[1757598346067,1.12573156,113920.0,113910.0,0.40303]
[1757598346771,0.96200595,113920.0,113910.0,0.40303]
[1757598347277,1.12561156,113920.0,113910.0,0.40303]
[1757598347671,0.96188595,113920.0,113910.0,0.40303]
[1757598347878,1.12561156,113920.0,113910.0,0.40303]
[1757598349075,1.12561156,113920.0,113910.0,0.04223]
[1757598349674,1.12561156,113920.0,113910.0,0.006]
[1757598349875,1.12477156,113920.0,113910.0,0.006]
[1757598350077,1.48561156,113920.0,113910.0,0.006]
[1757598350267,1.49234156,113920.0,113910.0,0.006]
[1757598350468,1.65606717,113920.0,113910.0,0.006]
[1757598350672,1.90606717,113920.0,113910.0,0.006]
[1757598351080,1.90606717,113920.0,113910.0,0.004]
[1757598351267,0.88550156,113920.0,113910.0,0.004]
[1757598351475,1.74333156,113920.0,113910.0,0.01773]
[1757598351780,0.03073,113900.0,113880.0,0.37497]
[1757598351973,1.05745561,113890.0,113880.0,0.3608]
[1757598352980,1.05008561,113890.0,113880.0,0.39602]
[1757598353175,0.18600561,113890.0,113880.0,0.39602]
[1757598353377,0.88632,113890.0,113880.0,0.39602]
[1757598353681,1.05104561,113890.0,113880.0,0.39602]
[1757598353881,0.16472561,113890.0,113880.0,0.64602]